bitfinex-derivatives/quotes_SOLF0:USTF0_20250319
["timestamp","ask_amount","ask_price","bid_price","bid_amount"]
[1742400874994,0.0560138,131.49,131.46,30.69586743]
[1742400875588,0.0560138,131.49,131.48,7.6048]
[1742400875793,0.0560138,131.49,131.46,30.69586743]
[1742400876197,7.6605138,131.49,131.46,30.69586743]
[1742400876395,0.0560138,131.49,131.46,30.69586743]
[1742400876893,0.0560138,131.49,131.47,7.6053]
[1742400877190,0.0560138,131.49,131.46,30.69586743]
[1742400877591,0.0560138,131.49,131.48,7.6048]
[1742400878498,7.6602138,131.49,131.47,7.6051]
[1742400879493,7.6048,131.48,131.46,38.30156743]
[1742400879793,0.0560138,131.49,131.46,30.69586743]
[1742400879993,7.6053,131.47,131.46,0.05586743]
[1742400883901,29.41419892,131.47,131.46,0.05586743]
[1742400884196,7.6077,131.45,131.42,38.2487]
[1742400884403,7.6077,131.45,131.41,8.1812]
[1742400884404,21.80889892,131.45,131.41,7.6093]
[1742400884701,21.80889892,131.45,131.38,3.93]
[1742400884900,21.80889892,131.45,131.39,30.64]
[1742400885097,0.05747203,131.43,131.4,0.05392915]
[1742400885503,0.05747203,131.43,131.42,7.6086]
[1742400885695,0.05747203,131.43,131.42,38.2486]
[1742400893212,25.66619892,131.49,131.46,7.6064]
[1742400894004,7.6059,131.48,131.45,7.607]
[1742400894205,25.66619892,131.49,131.45,7.607]
[1742400894410,7.6062,131.47,131.45,7.6550573]
[1742400895717,7.6067,131.46,131.45,0.0480573]
[1742400896916,7.6067,131.46,131.45,5.73e-05]
[1742400897112,30.62,131.46,131.38,3.93]
[1742400897412,21.80889892,131.43,131.39,30.62]
[1742400897913,21.80889892,131.43,131.38,3.93]
[1742400898121,7.6112,131.39,131.37,39.0685]
[1742400898320,0.05452681,131.42,131.37,39.0685]
[1742400898521,52.42889892,131.43,131.37,8.50348547]
[1742400898823,7.6109,131.39,131.37,30.67498547]
[1742400899121,0.05664267,131.41,131.37,30.67498547]
[1742400899715,0.05664267,131.41,131.39,7.6106]
[1742400900424,0.05664267,131.41,131.4,7.6101]
[1742400900619,0.05664267,131.41,131.4,38.2301]
[1742400902425,56.63859892,131.47,131.4,30.62]
[1742400902624,7.6064,131.47,131.4,30.62]
[1742400902820,21.80889892,131.48,131.4,30.62]
[1742400903028,21.80889892,131.48,131.43,7.6079]
[1742400903227,7.607,131.46,131.4,30.62]
[1742400903429,0.05434269,131.44,131.41,21.80889892]
[1742400903620,0.05434269,131.44,131.42,0.05254822]
[1742400903922,7.6053,131.49,131.43,30.62]
[1742400904131,7.6053,131.49,131.43,56.33849892]
[1742400904323,284.18889892,131.5,131.43,56.33849892]
[1742400904523,284.18889892,131.5,131.44,7.6076]
[1742400904823,284.18889892,131.5,131.43,34.5296]
[1742400905028,0.05526385,131.48,131.46,0.05400144]
[1742400905229,21.86416277,131.48,131.46,0.05400144]
[1742400905424,7.6061,131.47,131.46,0.05400144]
[1742400906027,7.6086,131.43,131.41,30.62]
[1742400906322,7.6086,131.43,131.38,21.80889892]
[1742400906323,52.42889892,131.46,131.4,7.6099]
[1742400906528,7.6094,131.42,131.39,30.62]
[1742400906823,52.42889892,131.46,131.39,30.62]
[1742400907024,21.80889892,131.46,131.39,30.62]
[1742400907226,0.05246888,131.44,131.41,0.05199525]
[1742400907425,0.05246888,131.44,131.42,30.62]
[1742400908130,0.05246888,131.44,131.43,7.6079]
[1742400909330,0.05246888,131.44,131.42,38.2287]
[1742400909532,0.05246888,131.44,131.42,30.62]
[1742400909729,7.66066888,131.44,131.42,30.62]
[1742400909924,7.66066888,131.44,131.42,38.2287]
[1742400910628,0.05246888,131.44,131.42,38.2287]
[1742400911232,7.66036888,131.44,131.42,38.2287]
[1742400911621,0.05246888,131.44,131.42,30.62]
[1742400911827,0.05246888,131.44,131.43,7.6084]
[1742400912228,0.05246888,131.44,131.42,30.62]
[1742400912421,0.05246888,131.44,131.42,38.2286]
[1742400912729,0.05246888,131.44,131.42,30.62]
[1742400913129,0.05246888,131.44,131.43,7.6084]
[1742400913724,0.05246888,131.44,131.42,38.2288]
[1742400914131,7.66086888,131.44,131.42,30.62]
[1742400914824,0.05246888,131.44,131.41,0.05199525]
[1742400915624,7.609,131.42,131.41,0.05199525]
[1742400916228,7.6087,131.43,131.41,7.66149525]
[1742400916427,0.05246888,131.44,131.41,0.05199525]
[1742400917527,7.609,131.42,131.41,0.05199525]
[1742400918127,0.05246888,131.44,131.41,0.05199525]
[1742400918532,0.05246888,131.44,131.41,7.66129525]
[1742400918735,0.05246888,131.44,131.41,0.05199525]
[1742400919136,0.05246888,131.44,131.41,21.86089417]
[1742400919434,262.38,131.5,131.43,21.80889892]
[1742400919629,262.38,131.5,131.44,34.4912]
[1742400919833,269.9846,131.5,131.46,7.6063]
[1742400920433,0.05579955,131.49,131.47,7.6612336]
[1742400921932,0.05579955,131.49,131.47,0.0551336]
[1742400922535,0.05579955,131.49,131.47,7.6609336]
[1742400922732,0.05579955,131.49,131.47,0.0551336]
[1742400923434,0.05579955,131.49,131.47,7.6609336]
[1742400924629,0.05579955,131.49,131.48,7.6055]
[1742400925227,0.05579955,131.49,131.47,7.6609336]
[1742400925429,0.05579955,131.49,131.47,0.0551336]
[1742400925832,0.05579955,131.49,131.47,7.6609336]
[1742400926034,7.6055,131.48,131.47,0.0551336]
[1742400927138,38.1855,131.48,131.47,0.0551336]
[1742400927340,7.6081,131.44,131.41,30.58]
[1742400927640,52.38889892,131.48,131.41,30.58]
[1742400927937,52.38889892,131.48,131.43,7.6084]
[1742400928533,7.6067,131.46,131.44,0.05787169]
[1742400928740,0.05646939,131.47,131.44,7.66547169]
[1742400929240,7.66296939,131.47,131.44,7.66547169]
[1742400930438,0.05646939,131.47,131.44,0.05787169]
[1742400931040,0.05646939,131.47,131.45,7.6069]
[1742400931744,7.66266939,131.47,131.45,7.6069]
[1742400931939,7.66266939,131.47,131.44,7.66537169]
[1742400932135,0.05646939,131.47,131.44,0.05787169]
[1742400932340,7.6069,131.46,131.44,0.05787169]
[1742400932742,7.6073,131.45,131.44,0.05787169]
[1742400936243,29.41619892,131.45,131.44,0.05787169]
[1742400936444,52.38889892,131.45,131.38,4.0271]
[1742400936641,21.80889892,131.43,131.35,8.0853]
[1742400936843,7.6105,131.4,131.36,30.58]
[1742400937142,7.6105,131.4,131.37,7.6115]
[1742400937539,0.05769724,131.4,131.37,0.04834491]
[1742400937745,0.05769724,131.4,131.38,7.6113]
[1742400937945,10.90444946,131.39,131.37,0.04834491]
[1742400938148,7.6113,131.38,131.37,0.04834491]
[1742400938845,21.80889892,131.39,131.37,0.04834491]
[1742400939340,7.6113,131.38,131.37,0.04834491]
[1742400939947,7.6123,131.37,131.33,38.1939]
[1742400940349,21.80889892,131.39,131.33,38.1939]
[1742400940548,7.6123,131.37,131.33,38.1939]
[1742400940747,7.6123,131.37,131.34,7.6135]
[1742400940949,0.04797596,131.36,131.34,7.6657092]
[1742400941945,0.04797596,131.36,131.35,7.613]
[1742400942241,0.04797596,131.36,131.34,0.0522092]
[1742400942851,0.04797596,131.36,131.34,7.6655092]
[1742400944350,0.04797596,131.36,131.34,0.0522092]
[1742400944848,0.04797596,131.36,131.35,7.613]
[1742400946454,0.04797596,131.36,131.34,38.2455092]
[1742400946659,0.04797596,131.36,131.34,30.6322092]
[1742400947056,0.04797596,131.36,131.35,7.613]
[1742400947656,0.04797596,131.36,131.34,38.2456092]
[1742400948352,0.04797596,131.36,131.35,7.613]
[1742400949456,262.52,131.4,131.38,7.6113]
[1742400949652,7.6107,131.4,131.35,3.9397]
[1742400950659,0.05382273,131.39,131.37,7.6116]
[1742400950857,0.05382273,131.39,131.37,30.58]
[1742400951359,7.6081,131.44,131.37,34.7259]
[1742400951555,314.96889892,131.45,131.37,34.7259]
[1742400952454,7.6087,131.43,131.4,7.6097]
[1742400952655,0.05259245,131.42,131.4,0.05188998]
[1742400952855,0.05259245,131.42,131.4,30.63188998]
[1742400953159,0.05259245,131.42,131.41,7.6091]
[1742400953661,7.6064,131.47,131.44,7.6075]
[1742400953857,7.6064,131.47,131.41,4.2214]
[1742400954652,7.6064,131.47,131.43,0.05015724]
[1742400954863,0.050206,131.45,131.44,7.6078]
[1742400955760,262.58,131.5,131.43,30.63015724]
[1742400956464,7.605,131.49,131.46,7.6062]
[1742400956662,7.605,131.49,131.46,38.1862]
[1742400956954,7.65635441,131.49,131.46,38.23688567]
[1742400957552,7.6056,131.48,131.46,30.63068567]
[1742400957758,0.05135441,131.49,131.46,30.63068567]
[1742400957759,52.42025333,131.49,131.46,0.05068567]
[1742400957959,21.80889892,131.47,131.46,0.05068567]
[1742400958160,29.41499892,131.47,131.46,0.05068567]
[1742400958660,29.41499892,131.47,131.46,8.567e-05]
[1742400958856,7.6084,131.43,131.42,30.56]
[1742400959063,7.6084,131.43,131.41,4.2214]
[1742400959959,7.66582288,131.43,131.41,4.27624722]
[1742400960164,7.609,131.42,131.41,4.27624722]
[1742400960357,0.05742288,131.43,131.41,11.88554722]
[1742400960662,0.05742288,131.43,131.41,4.27624722]
[1742400961264,7.66612288,131.43,131.41,4.27624722]
[1742400961562,7.66612288,131.43,131.41,11.88584722]
[1742400962869,0.05742288,131.43,131.41,11.88584722]
[1742400963364,0.05742288,131.43,131.42,7.609]
[1742400963963,0.05742288,131.43,131.41,11.88554722]
[1742400964166,0.05742288,131.43,131.41,0.05484722]
[1742400964365,7.609,131.42,131.41,0.05484722]
[1742400964667,30.56,131.42,131.35,30.56]
[1742400964862,7.6116,131.38,131.35,38.1727]
[1742400965269,21.80889892,131.41,131.35,30.56]
[1742400965468,7.6116,131.38,131.35,38.1728]
[1742400965674,21.80889892,131.41,131.33,8.0304]
[1742400965972,0.04994143,131.38,131.37,7.6119]
[1742400967467,262.48,131.44,131.37,30.56]
[1742400967762,262.48,131.44,131.37,34.609]
[1742400967961,29.41639892,131.45,131.37,34.609]
[1742400968470,30.56,131.47,131.38,21.80889892]
[1742400968771,0.05654862,131.42,131.4,0.05258108]
[1742400968967,30.56,131.47,131.4,0.05258108]
[1742400968968,21.80889892,131.46,131.41,30.56]
[1742400969179,0.05848913,131.42,131.41,38.1691]
[1742400969384,7.6076,131.45,131.42,0.05192234]
[1742400969682,0.05277797,131.43,131.42,0.05192234]
[1742400969884,0.05277797,131.43,131.42,7.66052234]
[1742400970680,0.05277797,131.43,131.42,0.05192234]
[1742400970886,7.66117797,131.43,131.42,0.05192234]
[1742400971485,38.22117797,131.43,131.42,0.05192234]
[1742400972182,30.61277797,131.43,131.36,30.56]
[1742400972380,21.80889892,131.41,131.36,38.1722]
[1742400972587,7.6113,131.39,131.36,7.6122]
[1742400972887,21.80889892,131.41,131.36,7.6122]
[1742400973086,7.6117,131.38,131.35,7.6127]
[1742400973283,7.6117,131.38,131.37,0.05299348]
[1742400973487,30.56,131.4,131.37,0.05299348]
[1742400973689,0.05806832,131.39,131.38,7.6112]
[1742400975385,7.66876832,131.39,131.37,0.05299348]
[1742400975783,7.6113,131.38,131.37,0.05299348]
[1742400977889,7.6131,131.35,131.32,30.54]
[1742400978392,52.34889892,131.39,131.34,7.6136]
[1742400978685,52.34889892,131.39,131.31,8.3316]
[1742400978881,7.6136,131.34,131.32,7.6145]
[1742400979087,54.55969892,131.39,131.27,2.3639]
[1742400979088,30.5903349,131.36,131.28,21.80889892]
[1742400979285,30.54,131.36,131.32,0.05691754]
[1742400979483,0.05280464,131.33,131.32,0.05691754]
[1742400980593,0.05280464,131.33,131.32,7.67171754]
[1742400981394,0.05280464,131.33,131.32,0.05691754]
[1742400982092,7.66700464,131.33,131.32,0.05691754]
[1742400982393,0.05280464,131.33,131.32,0.05691754]
[1742400982594,0.05280464,131.33,131.32,7.67171754]
[1742400988993,0.05280464,131.33,131.32,0.05691754]
[1742400989897,7.66700464,131.33,131.32,0.05691754]
[1742400991099,7.6158,131.31,131.28,30.54]
[1742400991293,7.6158,131.31,131.28,38.1567]
[1742400992004,7.6158,131.31,131.29,7.6165]
[1742400992200,0.05280464,131.33,131.28,52.40099319]
[1742400992699,0.05280464,131.33,131.32,7.6148]
[1742400995099,0.05280464,131.33,131.31,38.20904371]
[1742400996006,0.05280464,131.33,131.32,7.6148]
[1742400996503,0.05280464,131.33,131.31,30.59394371]
[1742400996694,0.05280464,131.33,131.31,38.20904371]
[1742400996899,0.05280464,131.33,131.31,30.59394371]
[1742400997904,7.66710464,131.33,131.31,38.20904371]
[1742400998203,0.05280464,131.33,131.31,30.59394371]
[1742400999494,0.05280464,131.33,131.31,0.05394371]
[1742400999700,0.05280464,131.33,131.32,7.6148]
[1742400999901,0.05280464,131.33,131.31,0.05394371]
[1742401000396,0.05280464,131.33,131.31,7.66924371]
[1742401000806,0.05280464,131.33,131.31,0.05394371]
[1742401001106,7.66750464,131.33,131.31,0.05394371]
[1742401001307,0.05280464,131.33,131.31,0.05394371]
[1742401001602,0.05280464,131.33,131.31,7.66894371]
[1742401002403,2.2108,131.39,131.31,0.05394371]
[1742401002604,7.6127,131.36,131.3,52.34889892]
[1742401002907,30.54,131.37,131.3,30.54]
[1742401003204,7.6146,131.33,131.3,30.54]
[1742401003401,30.54,131.37,131.3,30.54]
[1742401003603,0.05411617,131.33,131.3,30.58947144]
[1742401003803,7.66861617,131.33,131.31,7.6154]
[1742401004001,0.05411617,131.33,131.31,7.6154]
[1742401004197,0.05411617,131.33,131.3,30.58947144]
[1742401004406,0.05411617,131.33,131.32,7.6148]
[1742401005107,0.05411617,131.33,131.32,21.636727]
[1742401006002,14.021927,131.37,131.32,14.021927]
[1742401006204,21.633527,131.38,131.33,44.561927]
[1742401006404,21.633527,131.38,131.34,30.54]
[1742401006605,7.6116,131.38,131.34,44.561927]
[1742401007106,7.6116,131.38,131.34,30.54]
[1742401007405,0.05416492,131.37,131.35,0.05838644]
[1742401008508,0.05416492,131.37,131.36,7.6122]
[1742401010011,26.19349746,131.44,131.39,7.6102]
[1742401010711,26.19349746,131.44,131.38,7.611]
[1742401011008,7.6099,131.41,131.38,7.611]
[1742401011310,7.6099,131.41,131.4,0.05604633]
[1742401011810,7.65948328,131.42,131.4,0.05604633]
[1742401013311,7.6096,131.41,131.4,0.05604633]
[1742401013804,0.05028328,131.42,131.4,0.05604633]
[1742401014504,0.05028328,131.42,131.41,7.6096]
[1742401014908,0.05028328,131.42,131.4,7.66584633]
[1742401015210,0.05028328,131.42,131.4,0.05604633]
[1742401015409,0.05028328,131.42,131.41,7.6096]
[1742401015606,0.05028328,131.42,131.4,0.05604633]
[1742401015906,7.6096,131.41,131.4,0.05604633]
[1742401019314,7.6096,131.41,131.4,4.633e-05]
[1742401019510,7.6119,131.37,131.36,30.5]
[1742401019707,7.6119,131.37,131.34,32.5245]
[1742401020012,7.6116,131.38,131.34,32.5245]
[1742401020217,21.90269746,131.4,131.34,32.5245]
[1742401020614,0.04887039,131.38,131.36,0.04838726]
[1742401020914,7.6122,131.37,131.36,0.04838726]
[1742401021208,0.04887039,131.38,131.36,0.04838726]
[1742401021406,21.95156785,131.38,131.29,21.90269746]
[1742401021612,21.90269746,131.38,131.33,7.6138]
[1742401021813,21.90269746,131.38,131.3,30.5]
[1742401022111,38.1111,131.39,131.31,21.90269746]
[1742401022314,7.6111,131.39,131.32,6.1681]
[1742401022513,0.04837021,131.36,131.34,0.05549489]
[1742401023517,0.04837021,131.36,131.35,7.613]
[1742401026415,0.04837021,131.36,131.34,0.05549489]
[1742401026719,7.613,131.35,131.34,0.05549489]
[1742401027310,7.66097021,131.36,131.34,0.05549489]
[1742401027518,0.04837021,131.36,131.34,0.05549489]
[1742401027821,7.613,131.35,131.34,0.05549489]
[1742401028217,38.113,131.35,131.34,0.05549489]
[1742401028419,7.6154,131.31,131.28,36.629]
[1742401028926,7.6154,131.31,131.28,6.129]
[1742401029121,7.616,131.3,131.28,6.129]
[1742401029622,7.6671206,131.3,131.28,2.08754666]
[1742401030322,7.6165,131.29,131.28,2.08754666]
[1742401030621,7.6165,131.29,131.28,0.04894666]
[1742401030820,7.6165,131.29,131.28,0.02880348]
[1742401031124,38.1165,131.29,131.28,0.02880348]
[1742401031715,0.0511206,131.3,131.28,0.02880348]
[1742401034031,0.0511206,131.3,131.28,38.14560348]
[1742401034432,0.0511206,131.3,131.28,30.52880348]
[1742401034630,0.0511206,131.3,131.29,7.6165]
[1742401035127,293.12,131.35,131.31,7.615]
[1742401035333,262.62,131.35,131.31,30.5]
[1742401035635,270.2335,131.35,131.29,42.1447]
[1742401035836,262.62,131.35,131.29,34.5285]
[1742401036132,0.05248002,131.33,131.31,0.05049683]
[1742401038940,7.66708002,131.33,131.31,0.05049683]
[1742401039742,29.51749746,131.32,131.31,0.05049683]
[1742401040035,21.90269746,131.32,131.25,30.5]
[1742401040236,21.90269746,131.32,131.29,7.6163]
[1742401041139,21.95793405,131.32,131.29,7.66765637]
[1742401041336,21.95793405,131.32,131.3,7.6159]
[1742401041539,0.05523659,131.32,131.3,7.6159]
[1742401041740,0.05523659,131.32,131.29,0.05135637]
[1742401042038,0.05523659,131.32,131.29,7.66765637]
[1742401042542,7.67033659,131.32,131.29,7.66765637]
[1742401042737,29.57303405,131.32,131.29,7.66765637]
[1742401043139,29.57303405,131.32,131.29,0.05135637]
[1742401043439,7.6154,131.31,131.29,0.05135637]
[1742401043940,21.95793405,131.32,131.29,0.05135637]
[1742401044239,0.05523659,131.32,131.29,0.05135637]
[1742401044441,0.05523659,131.32,131.3,7.6155]
[1742401045242,0.05523659,131.32,131.31,7.6154]
[1742401046341,0.05523659,131.32,131.29,0.05135637]
[1742401046342,0.05523659,131.32,131.3,7.6156]
[1742401046543,0.05523659,131.32,131.29,0.05135637]
[1742401046836,0.05523659,131.32,131.3,7.6154]
[1742401047343,0.05523659,131.32,131.29,0.05135637]
[1742401047542,0.05523659,131.32,131.3,7.6159]
[1742401048438,7.67013659,131.32,131.29,7.66755637]
[1742401048742,0.05523659,131.32,131.29,0.05135637]
[1742401049142,14.03477298,131.31,131.29,0.05135637]
[1742401050243,14.03477298,131.31,131.29,7.66755637]
[1742401051145,14.03477298,131.31,131.3,7.6159]
[1742401051543,0.05523659,131.32,131.29,0.05135637]
[1742401051743,0.05523659,131.32,131.3,7.6159]
[1742401052640,21.70490957,131.32,131.29,0.05135637]
[1742401052845,14.03477298,131.31,131.29,0.05135637]
[1742401053244,21.65037298,131.31,131.29,7.66785637]
[1742401053741,14.03477298,131.3,131.29,0.05135637]
[1742401053943,21.65067298,131.3,131.29,0.05135637]
[1742401056346,0.05523659,131.32,131.29,0.05135637]
[1742401056347,21.65037298,131.31,131.29,0.05135637]
[1742401056543,14.03477298,131.31,131.29,0.05135637]
[1742401056847,14.03477298,131.31,131.29,7.66775637]
[1742401057147,0.05523659,131.32,131.29,7.66775637]
[1742401057344,0.05523659,131.32,131.31,7.6154]
[1742401060050,2.1254,131.38,131.31,7.6154]
[1742401060051,45.641,131.46,131.31,14.03477298]
[1742401060252,14.03477298,131.37,131.32,44.51477298]
[1742401060552,14.03477298,131.37,131.35,7.6127]
[1742401060943,14.03477298,131.38,131.35,30.48]
[1742401061146,14.03477298,131.38,131.36,7.6122]
[1742401061352,14.08887385,131.38,131.36,7.6122]
[1742401061853,21.70027385,131.38,131.36,7.6122]
[1742401062253,21.70027385,131.38,131.35,38.14785298]
[1742401062551,0.05410087,131.38,131.35,30.53515298]
[1742401063953,0.05410087,131.38,131.36,7.6123]
[1742401064253,14.03477298,131.37,131.35,30.53515298]
[1742401064451,21.64727298,131.37,131.35,30.53515298]
[1742401064654,14.03477298,131.36,131.35,30.53515298]
[1742401064854,14.03477298,131.36,131.35,0.05515298]
[1742401065150,21.64727298,131.36,131.35,0.05515298]
[1742401067052,14.62988649,131.36,131.35,0.05515298]
[1742401067256,7.6125,131.36,131.35,0.05515298]
[1742401067657,7.6122,131.37,131.35,0.05515298]
[1742401069053,7.6125,131.36,131.35,0.05515298]
[1742401069560,21.96590737,131.38,131.35,0.05515298]
[1742401069754,7.6123,131.37,131.35,0.05515298]
[1742401070658,7.6123,131.37,131.35,7.66815298]
[1742401070859,21.96590737,131.38,131.35,7.66815298]
[1742401071659,7.6123,131.37,131.35,7.66815298]
[1742401071859,7.6123,131.37,131.35,0.05515298]
[1742401072960,7.6125,131.36,131.35,0.05515298]
[1742401073260,21.96590737,131.38,131.35,7.66795298]
[1742401074161,7.6122,131.37,131.35,7.66795298]
[1742401074861,7.6122,131.37,131.35,0.05515298]
[1742401077063,7.6122,131.37,131.35,7.66815298]
[1742401077657,7.6122,131.37,131.35,0.05515298]
[1742401078463,7.6122,131.37,131.35,7.66815298]
[1742401079561,7.66560087,131.38,131.36,7.6121]
[1742401079765,7.66560087,131.38,131.35,30.49515298]
[1742401079766,0.05410087,131.38,131.35,30.49515298]
[1742401080265,21.9118065,131.48,131.37,21.9118065]
[1742401080464,21.9118065,131.48,131.39,21.9118065]
[1742401080661,7.607,131.46,131.43,7.6084]
[1742401080860,290.7311065,131.5,131.42,30.44]
[1742401081160,30.44,131.49,131.43,30.44]
[1742401081461,0.05589958,131.47,131.45,0.05029634]
[1742401081963,7.6067,131.46,131.45,0.05029634]
[1742401082563,29.5185065,131.46,131.45,9.634e-05]
[1742401082765,52.3518065,131.46,131.37,30.44]
[1742401083760,30.44,131.46,131.4,0.04948877]
[1742401083963,0.05333264,131.43,131.41,30.44]
[1742401084860,0.05333264,131.43,131.42,7.609]
[1742401085164,0.05333264,131.43,131.41,32.4614]
[1742401087466,0.05333264,131.43,131.41,40.0709]
[1742401088569,0.05333264,131.43,131.41,32.4614]
[1742401089268,0.05333264,131.43,131.41,54.07389194]
[1742401089566,0.05333264,131.43,131.42,14.00329194]
[1742401089769,7.6066,131.47,131.42,16.10519194]
[1742401089970,7.6066,131.47,131.43,14.00329194]
[1742401090268,7.6066,131.47,131.44,30.42]
[1742401090464,7.6066,131.47,131.44,38.0277]
[1742401090768,14.00329194,131.48,131.44,30.42]
[1742401090963,0.05799793,131.47,131.44,30.47488554]
[1742401091166,7.607,131.46,131.44,30.47488554]
[1742401092266,21.61059194,131.45,131.44,0.05488554]
[1742401092467,21.61059194,131.45,131.44,0.0015529]
[1742401092670,14.00329194,131.45,131.38,30.42]
[1742401092970,14.00329194,131.42,131.38,30.42]
[1742401093471,7.6096,131.41,131.38,30.42]
[1742401093773,0.05266851,131.41,131.38,30.4725273]
[1742401094070,0.05266851,131.41,131.38,44.47581924]
[1742401094473,0.05266851,131.41,131.39,7.6107]
[1742401094973,0.05266851,131.41,131.38,44.47581924]
[1742401095173,7.66246851,131.41,131.38,38.0834273]
[1742401096067,0.05266851,131.41,131.38,0.0525273]
[1742401096371,0.05266851,131.41,131.38,30.4725273]
[1742401096773,7.66266851,131.41,131.38,38.0836273]
[1742401096967,0.05266851,131.41,131.38,38.0836273]
[1742401097273,7.66266851,131.41,131.38,38.0836273]
[1742401097469,0.05266851,131.41,131.38,30.4725273]
[1742401098070,0.05266851,131.41,131.4,7.6101]
[1742401099876,0.05266851,131.41,131.39,7.6104]
[1742401100173,0.05266851,131.41,131.38,30.4725273]
[1742401100373,21.94395343,131.41,131.38,0.0525273]
[1742401100675,52.34395343,131.41,131.38,0.0525273]
[1742401100875,7.6107,131.39,131.38,0.0525273]
[1742401101578,29.50198492,131.39,131.38,0.0525273]
[1742401102173,21.89128492,131.39,131.32,4.173]
[1742401102378,21.89128492,131.37,131.31,30.4]
[1742401102775,7.6139,131.34,131.31,30.4]
[1742401103480,0.04823605,131.34,131.31,30.4565815]
[1742401103980,0.04823605,131.34,131.32,30.4]
[1742401104384,0.04823605,131.34,131.31,0.0565815]
[1742401104582,7.6143,131.33,131.31,0.0565815]
[1742401104883,0.04823605,131.34,131.31,0.0565815]
[1742401105186,7.66213605,131.34,131.31,7.6719815]
[1742401105482,0.04823605,131.34,131.31,0.0565815]
[1742401106288,0.04823605,131.34,131.32,7.6144]
[1742401106886,7.66193605,131.34,131.31,7.6715815]
[1742401107082,0.04823605,131.34,131.31,0.0565815]
[1742401107488,7.6148,131.32,131.31,0.0565815]
[1742401108489,21.89128492,131.33,131.31,0.0565815]
[1742401108888,38.0148,131.32,131.31,0.0565815]
[1742401109293,30.4,131.32,131.27,30.4]
[1742401109590,30.4,131.32,131.25,32.5413]
[1742401110498,0.05622328,131.3,131.27,0.04972237]
[1742401111389,0.05622328,131.3,131.29,7.6165]
[1742401112095,0.05622328,131.3,131.28,30.4]
[1742401112596,0.05622328,131.3,131.29,7.6165]
[1742401113097,21.89128492,131.35,131.31,7.6152]
[1742401113289,21.89128492,131.35,131.28,30.4]
[1742401113487,7.6143,131.33,131.28,30.4]
[1742401113897,7.6143,131.33,131.3,7.6157]
[1742401114097,7.6143,131.33,131.28,30.4]
[1742401114395,7.66381425,131.33,131.3,0.05171162]
[1742401114597,7.66381425,131.33,131.3,7.66761162]
[1742401114893,21.94079917,131.33,131.3,0.05171162]
[1742401115193,29.50668492,131.31,131.3,0.05171162]
[1742401116592,7.618,131.27,131.24,3.8886]
[1742401116898,7.618,131.27,131.24,32.3545]
[1742401117199,7.6168,131.29,131.24,32.3545]
[1742401117692,30.42,131.3,131.24,32.3545]
[1742401117890,0.05407806,131.28,131.26,21.89128492]
[1742401118094,30.42,131.34,131.27,30.42]
[1742401118295,21.89128492,131.35,131.27,30.42]
[1742401118496,7.6139,131.34,131.31,7.615]
[1742401118692,21.89128492,131.35,131.3,30.4]
[1742401119297,0.04957637,131.34,131.31,0.05063318]
[1742401119500,7.6145,131.33,131.31,7.66593318]
[1742401119800,0.04957637,131.34,131.31,7.66593318]
[1742401120100,7.66357637,131.34,131.31,7.66593318]
[1742401120298,0.04957637,131.34,131.32,7.6145]
[1742401120899,7.66337637,131.34,131.32,7.6145]
[1742401121793,7.66337637,131.34,131.31,0.05063318]
[1742401121794,0.04957637,131.34,131.33,7.6142]
[1742401122401,0.04957637,131.34,131.33,38.0142]
[1742401123601,21.89128492,131.4,131.36,7.6119]
[1742401123795,52.29128492,131.4,131.33,30.4]
[1742401124097,7.6112,131.39,131.33,30.4]
[1742401124403,7.6112,131.39,131.36,7.6122]
[1742401124702,7.6114,131.38,131.36,7.6122]
[1742401125003,7.6114,131.38,131.36,7.66748271]
[1742401125202,0.05476627,131.39,131.36,7.66748271]
[1742401125601,0.05476627,131.39,131.36,0.05528271]
[1742401126303,7.66586627,131.39,131.36,7.66738271]
[1742401127003,7.6115,131.38,131.36,7.66738271]
[1742401128301,7.6119,131.37,131.36,0.05528271]
[1742401128803,7.6116,131.38,131.36,0.05528271]
[1742401129005,52.29128492,131.38,131.36,0.05528271]
[1742401129503,7.6139,131.34,131.3,7.6157]
[1742401129898,21.89128492,131.35,131.3,7.6157]
[1742401130098,7.6139,131.34,131.3,7.6157]
[1742401130599,7.6139,131.34,131.31,7.6153]
[1742401130800,0.05737237,131.33,131.31,0.04926713]